fUST/lending_fUST_20240815
["ID","MTS","AMOUNT","RATE_DAILY","PERIOD"]
[334992955,1723716648431,-500.0,0.00013698,2]
[334992957,1723716648441,-512.88543441,0.00013698,2]
[334992959,1723716648451,-500.0,0.00013698,2]
[334992961,1723716648461,-500.0,0.00013698,2]
[334992963,1723716648470,-500.0,0.00013698,2]
[334992965,1723716648480,-500.0,0.00013698,2]
[334992967,1723716648490,-500.0,0.00013698,2]
[334992969,1723716648500,-500.0,0.00013698,2]
[334992971,1723716648510,-500.0,0.00013698,2]
[334992973,1723716648520,-500.0,0.00013698,2]
[334992975,1723716648530,-500.0,0.00013698,2]
[334992977,1723716648540,-500.0,0.00013698,2]
[334992979,1723716648551,-500.0,0.00013698,2]
[334992981,1723716648562,-500.0,0.00013698,2]
[334992983,1723716648573,-484.56118132,0.00013698,2]
[334992985,1723716648584,-613.51627791,0.00013698,2]
[334992987,1723716648595,-500.0,0.00013698,2]
[334992989,1723716648605,-500.0,0.00013698,2]
[334992992,1723716648614,-500.0,0.00013698,2]
[334992994,1723716648627,-500.0,0.00013698,2]
[334992996,1723716648638,-500.0,0.00013698,2]
[334992998,1723716648648,-500.0,0.00013698,2]
[334993000,1723716648658,-500.0,0.00013698,2]
[334993002,1723716648668,-500.0,0.00013698,2]
[334993004,1723716648678,-500.0,0.00013698,2]
[334993006,1723716648687,-200.55798648,0.00013698,2]
[334993008,1723716648697,-869.62,0.00013698,2]
[334993020,1723716648828,-500.0,0.00013698,2]
[334993023,1723716648838,-500.0,0.00013698,2]
[334993025,1723716648848,-590.23,0.00013698,2]
[334993027,1723716648857,-500.0,0.00013698,2]
[334993029,1723716648867,-500.0,0.00013698,2]
[334993031,1723716648877,-438.63773056,0.00013698,2]
[334993033,1723716648888,-500.0,0.00013698,2]
[334993035,1723716648899,-500.0,0.00013698,2]
[334993037,1723716648909,-500.0,0.00013698,2]
[334993039,1723716648919,-500.0,0.00013698,2]
[334993041,1723716648929,-500.0,0.00013698,2]
[334993043,1723716648939,-500.0,0.00013698,2]
[334993045,1723716648949,-500.0,0.00013698,2]
[334993047,1723716648959,-736.55,0.00013698,2]
[334993050,1723716648969,-500.0,0.00013698,2]
[334993052,1723716648979,-632.59,0.00013698,2]
[334993054,1723716648989,-500.0,0.00013698,2]
[334993056,1723716648999,-739.83,0.00013698,2]
[334993058,1723716649009,-500.0,0.00013698,2]
[334993060,1723716649018,-618.54,0.00013698,2]
[334993062,1723716649027,-500.0,0.00013698,2]
[334993064,1723716649037,-500.0,0.00013698,2]
[334993066,1723716649047,-500.0,0.00013698,2]
[334993068,1723716649057,-500.0,0.00013698,2]
[334993070,1723716649067,-500.0,0.00013698,2]
[334993072,1723716649077,-245.424,0.00013698,2]
[334993074,1723716649087,-693.68,0.00013698,2]
[334993076,1723716649097,-508.15084432,0.00013698,2]
[334993078,1723716649107,-509.62993175,0.00013698,2]
[334993079,1723716649116,-500.0,0.00013698,2]
[334993081,1723716649127,-500.0,0.00013698,2]
[334993084,1723716649143,-586.18,0.00013698,2]
[334993085,1723716649154,-768.05,0.00013698,2]
[334993087,1723716649164,-500.0,0.00013698,2]
[334993090,1723716649175,-500.0,0.00013698,2]
[334993092,1723716649185,-500.0,0.00013698,2]
[334993094,1723716649195,-401.19248716,0.00013698,2]
[334993095,1723716649204,-500.0,0.00013698,2]
[334993098,1723716649215,-151.0765862,0.00013698,2]
[334993100,1723716649226,-658.85,0.00013698,2]
[334993102,1723716649237,-500.0,0.00013698,2]
[334993104,1723716649247,-502.97276873,0.00013698,2]
[334993106,1723716649257,-500.0,0.00013698,2]
[334993108,1723716649267,-500.0,0.00013698,2]
[334993110,1723716649277,-724.88,0.00013698,2]
[334993112,1723716649288,-500.0,0.00013698,2]
[334993114,1723716649298,-500.0,0.00013698,2]
[334993116,1723716649307,-500.0,0.00013698,2]
[334993118,1723716649318,-500.0,0.00013698,2]
[334993120,1723716649328,-733.53,0.00013698,2]
[334993122,1723716649338,-500.0,0.00013698,2]
[334993124,1723716649349,-500.0,0.00013698,2]
[334993126,1723716649359,-503.20651705,0.00013698,2]
[334993128,1723716649370,-500.0,0.00013698,2]
[334993130,1723716649386,-500.0,0.00013698,2]
[334993132,1723716649396,-500.0,0.00013698,2]
[334993134,1723716649406,-500.0,0.00013698,2]
[334993136,1723716649416,-500.0,0.00013698,2]
[334993138,1723716649426,-151.0,0.00013698,2]
[334993140,1723716649438,-151.0,0.00013698,2]
[334993142,1723716649448,-507.04,0.00013698,2]
[334993144,1723716649458,-500.0,0.00013698,2]
[334993146,1723716649468,-500.0,0.00013698,2]
[334993148,1723716649478,-500.0,0.00013698,2]
[334993150,1723716649488,-500.0,0.00013698,2]
[334993152,1723716649499,-500.0,0.00013698,2]
[334993154,1723716649508,-807.88,0.00013698,2]
[334993157,1723716649519,-1080.27,0.00013698,2]
[334993159,1723716649529,-618.64,0.00013698,2]
[334993161,1723716649539,-500.0,0.00013698,2]
[334993163,1723716649549,-500.0,0.00013698,2]
[334993165,1723716649560,-500.0,0.00013698,2]
[334993167,1723716649575,-384.31853634,0.00013698,2]
[334993169,1723716649585,-500.0,0.00013698,2]
[334993171,1723716649596,-500.0,0.00013698,2]
[334993173,1723716649606,-500.0,0.00013698,2]
[334993175,1723716649615,-500.0,0.00013698,2]
[334993177,1723716649626,-500.0,0.00013698,2]
[334993179,1723716649638,-500.0,0.00013698,2]
[334993181,1723716649647,-761.97,0.00013698,2]
[334993183,1723716649656,-549.53,0.00013698,2]
[334993185,1723716649668,-500.0,0.00013698,2]
[334993187,1723716649678,-500.0,0.00013698,2]
[334993189,1723716649688,-503.8766555,0.00013698,2]
[334993191,1723716649698,-500.0,0.00013698,2]
[334993193,1723716649709,-500.0,0.00013698,2]
[334993196,1723716649719,-500.0,0.00013698,2]
[334993198,1723716649729,-500.0,0.00013698,2]
[334993200,1723716649740,-500.0,0.00013698,2]
[334993202,1723716649751,-500.0,0.00013698,2]
[334993204,1723716649762,-786.68,0.00013698,2]
[334993206,1723716649772,-500.0,0.00013698,2]
[334993208,1723716649782,-582.93,0.00013698,2]
[334993210,1723716649792,-500.0,0.00013698,2]
[334993212,1723716649801,-500.0,0.00013698,2]
[334993215,1723716649812,-500.0,0.00013698,2]
[334993217,1723716649823,-500.0,0.00013698,2]
[334993219,1723716649834,-1007.52,0.00013698,2]
[334993221,1723716649845,-500.0,0.00013698,2]
[334993223,1723716649856,-507.23895151,0.00013698,2]
[334993225,1723716649866,-1023.58,0.00013698,2]
[334993227,1723716649876,-580.03293539,0.00013698,2]
[334993229,1723716649887,-500.0,0.00013698,2]
[334993231,1723716649896,-507.11739333,0.00013698,2]
[334993233,1723716649906,-500.0,0.00013698,2]
[334993235,1723716649916,-500.0,0.00013698,2]
[334993237,1723716649926,-500.0,0.00013698,2]
[334993239,1723716649936,-503.52231645,0.00013698,2]
[334993242,1723716649946,-636.2,0.00013698,2]
[334993244,1723716649955,-500.0,0.00013698,2]
[334993245,1723716649964,-523.91,0.00013698,2]
[334993247,1723716649975,-525.78,0.00013698,2]
[334993250,1723716649985,-500.0,0.00013698,2]
[334993252,1723716649995,-502.34607036,0.00013698,2]
[334993254,1723716650005,-500.0,0.00013698,2]
[334993256,1723716650014,-504.99208689,0.00013698,2]
[334993258,1723716650024,-500.0,0.00013698,2]
[334993260,1723716650033,-500.0,0.00013698,2]
[334993262,1723716650043,-500.0,0.00013698,2]
[334993264,1723716650053,-500.0,0.00013698,2]
[334993266,1723716650063,-500.0,0.00013698,2]
[334993268,1723716650072,-500.0,0.00013698,2]
[334993270,1723716650082,-500.0,0.00013698,2]
[334993272,1723716650091,-500.0,0.00013698,2]
[334993274,1723716650102,-500.0,0.00013698,2]
[334993276,1723716650112,-500.0,0.00013698,2]
[334993278,1723716650122,-500.0,0.00013698,2]
[334993280,1723716650132,-500.0,0.00013698,2]
[334993282,1723716650142,-500.0,0.00013698,2]
[334993284,1723716650151,-500.0,0.00013698,2]
[334993286,1723716650160,-500.0,0.00013698,2]
[334993288,1723716650170,-540.2,0.00013698,2]
[334993290,1723716650179,-500.0,0.00013698,2]
[334993292,1723716650188,-500.0,0.00013698,2]
[334993293,1723716650198,-500.0,0.00013698,2]
[334993295,1723716650208,-500.0,0.00013698,2]
[334993298,1723716650219,-504.53771264,0.00013698,2]
[334993300,1723716650229,-500.0,0.00013698,2]
[334993302,1723716650239,-722.89,0.00013698,2]
[334993304,1723716650249,-701.26,0.00013698,2]
[334993306,1723716650260,-500.0,0.00013698,2]
[334993308,1723716650271,-500.0,0.00013698,2]
[334993310,1723716650281,-500.0,0.00013698,2]
[334993312,1723716650290,-523.63,0.00013698,2]
[334993314,1723716650299,-500.0,0.00013698,2]
[334993316,1723716650310,-705.57,0.00013698,2]
[334993318,1723716650320,-719.99,0.00013698,2]
[334993320,1723716650331,-500.0,0.00013698,2]
[334993322,1723716650342,-500.0,0.00013698,2]
[334993325,1723716650354,-760.14,0.00013698,2]
[334993327,1723716650364,-500.0,0.00013698,2]
[334993329,1723716650375,-500.0,0.00013698,2]
[334993331,1723716650386,-500.0,0.00013698,2]
[334993333,1723716650396,-151.0,0.00013698,2]
[334993335,1723716650407,-160.121955,0.00013698,2]
[334993337,1723716650417,-500.0,0.00013698,2]
[334993339,1723716650426,-500.0,0.00013698,2]
[334993341,1723716650436,-500.0,0.00013698,2]
[334993343,1723716650446,-500.0,0.00013698,2]
[334993345,1723716650456,-500.0,0.00013698,2]
[334993347,1723716650466,-703.21,0.00013698,2]
[334993349,1723716650476,-501.64638506,0.00013698,2]
[334993351,1723716650485,-500.0,0.00013698,2]
[334993353,1723716650495,-739.05,0.00013698,2]
[334993355,1723716650505,-809.79,0.00013698,2]
[334993357,1723716650515,-500.0,0.00013698,2]
[334993359,1723716650524,-500.0,0.00013698,2]
[334993361,1723716650534,-753.0,0.00013698,2]
[334993363,1723716650544,-768.32,0.00013698,2]
[334993365,1723716650554,-735.32,0.00013698,2]
[334993367,1723716650566,-509.16562092,0.00013698,2]
[334993369,1723716650576,-500.0,0.00013698,2]
[334993371,1723716650586,-500.0,0.00013698,2]
[334993373,1723716650595,-500.0,0.00013698,2]
[334993375,1723716650605,-500.0,0.00013698,2]
[334993377,1723716650614,-588.82,0.00013698,2]
[334993379,1723716650625,-500.0,0.00013698,2]
[334993381,1723716650637,-503.699989,0.00013698,2]
[334993383,1723716650648,-601.68,0.00013698,2]
[334993385,1723716650658,-500.0,0.00013698,2]
[334993387,1723716650668,-500.0,0.00013698,2]
[334993389,1723716650678,-485.79420532,0.00013698,2]
[334993391,1723716650688,-959.18,0.00013698,2]
[334993393,1723716650698,-500.0,0.00013698,2]
[334993395,1723716650707,-500.0,0.00013698,2]
[334993396,1723716650717,-500.0,0.00013698,2]
[334993398,1723716650727,-500.0,0.00013698,2]
[334993401,1723716650738,-577.71,0.00013698,2]
[334993402,1723716650747,-500.55993347,0.00013698,2]
[334993404,1723716650757,-500.0,0.00013698,2]
[334993406,1723716650767,-739.29,0.00013698,2]
[334993408,1723716650776,-500.0,0.00013698,2]
[334993410,1723716650786,-500.0,0.00013698,2]
[334993412,1723716650796,-500.0,0.00013698,2]
[334993414,1723716650805,-500.0,0.00013698,2]
[334993416,1723716650816,-500.0,0.00013698,2]
[334993418,1723716650826,-151.0,0.00013698,2]
[334993420,1723716650835,-151.0,0.00013698,2]
[334993422,1723716650845,-151.0,0.00013698,2]
[334993424,1723716650855,-259.158264,0.00013698,2]
[334993437,1723716650973,-863.69,0.00013698,2]
[334993439,1723716650984,-205.37050875,0.00013698,2]
[334993441,1723716650993,-683.56,0.00013698,2]
[334993443,1723716651004,-500.0,0.00013698,2]
[334993445,1723716651014,-500.0,0.00013698,2]
[334993447,1723716651024,-500.0,0.00013698,2]
[334993449,1723716651034,-1482.01,0.00013698,2]
[334993451,1723716651043,-637.65,0.00013698,2]
[334993453,1723716651053,-500.0,0.00013698,2]
[334993455,1723716651063,-752.65,0.00013698,2]
[334993457,1723716651072,-500.0,0.00013698,2]
[334993459,1723716651082,-500.0,0.00013698,2]
[334993460,1723716651091,-500.0,0.00013698,2]
[334993462,1723716651100,-500.0,0.00013698,2]
[334993464,1723716651111,-500.0,0.00013698,2]
[334993466,1723716651120,-916.36,0.00013698,2]
[334993468,1723716651131,-500.0,0.00013698,2]
[334993470,1723716651143,-500.0,0.00013698,2]
[334993472,1723716651153,-505.13049909,0.00013698,2]
[334993474,1723716651162,-500.0,0.00013698,2]
[334993476,1723716651172,-500.0,0.00013698,2]
[334993478,1723716651182,-500.0,0.00013698,2]
[334993480,1723716651192,-905.05,0.00013698,2]
[334993482,1723716651202,-1137.78,0.00013698,2]
[334993484,1723716651211,-500.0,0.00013698,2]
[334993486,1723716651221,-500.0,0.00013698,2]
[334993488,1723716651230,-500.0,0.00013698,2]
[334993490,1723716651239,-472.23054707,0.00013698,2]
[334993492,1723716651250,-505.45132813,0.00013698,2]
[334993494,1723716651259,-500.0,0.00013698,2]
[334993496,1723716651268,-500.0,0.00013698,2]
[334993498,1723716651277,-581.08,0.00013698,2]
[334993500,1723716651287,-151.0,0.00013698,2]
[334993502,1723716651298,-439.28384441,0.00013698,2]
[334993504,1723716651307,-151.0,0.00013698,2]
[334993506,1723716651316,-151.0,0.00013698,2]
[334993508,1723716651326,-151.0,0.00013698,2]
[334993510,1723716651336,-151.0,0.00013698,2]
[334993512,1723716651345,-500.0,0.00013698,2]
[334993514,1723716651355,-151.0,0.00013698,2]
[334993516,1723716651365,-151.0,0.00013698,2]
[334993517,1723716651374,-500.0,0.00013698,2]
[334993519,1723716651385,-552.87660334,0.00013698,2]
[334993522,1723716651395,-151.0,0.00013698,2]
[334993524,1723716651405,-618.51,0.00013698,2]
[334993525,1723716651415,-528.13880111,0.00013698,2]
[334993528,1723716651426,-151.0,0.00013698,2]
[334993530,1723716651436,-151.0,0.00013698,2]
[334993532,1723716651446,-204.447735,0.00013698,2]
[334993534,1723716651456,-500.0,0.00013698,2]
[334993535,1723716651466,-500.0,0.00013698,2]
[334993537,1723716651476,-500.0,0.00013698,2]
[334993540,1723716651486,-563.39339795,0.00013698,2]
[334993541,1723716651497,-500.0,0.00013698,2]
[334993543,1723716651507,-696.9,0.00013698,2]
[334993545,1723716651518,-615.83,0.00013698,2]
[334993547,1723716651528,-500.0,0.00013698,2]
[334993549,1723716651538,-500.0,0.00013698,2]
[334993551,1723716651549,-500.0,0.00013698,2]
[334993553,1723716651561,-1246.53,0.00013698,2]
[334993555,1723716651573,-151.0,0.00013698,2]
[334993557,1723716651583,-151.0,0.00013698,2]
[334993559,1723716651593,-151.0,0.00013698,2]
[334993561,1723716651604,-254.259864,0.00013698,2]
[334993563,1723716651613,-1277.91,0.00013698,2]
[334993565,1723716651623,-500.0,0.00013698,2]
[334993567,1723716651634,-500.0,0.00013698,2]
[334993569,1723716651645,-500.0,0.00013698,2]
[334993571,1723716651655,-500.0,0.00013698,2]
[334993573,1723716651665,-500.0,0.00013698,2]
[334993575,1723716651675,-822.29,0.00013698,2]
[334993577,1723716651685,-500.0,0.00013698,2]
[334993579,1723716651696,-500.0,0.00013698,2]
[334993581,1723716651705,-500.0,0.00013698,2]
[334993583,1723716651716,-500.0,0.00013698,2]
[334993585,1723716651726,-801.88,0.00013698,2]
[334993587,1723716651736,-500.0,0.00013698,2]
[334993589,1723716651746,-500.0,0.00013698,2]
[334993591,1723716651755,-500.0,0.00013698,2]
[334993593,1723716651766,-500.0,0.00013698,2]
[334993595,1723716651776,-500.0,0.00013698,2]
[334993597,1723716651786,-151.0,0.00013698,2]
[334993599,1723716651796,-500.0,0.00013698,2]
[334993601,1723716651806,-151.0,0.00013698,2]
[334993603,1723716651816,-151.0,0.00013698,2]
[334993605,1723716651825,-151.0,0.00013698,2]
[334993607,1723716651835,-151.0,0.00013698,2]
[334993609,1723716651844,-271.206875,0.00013698,2]
[334993611,1723716651853,-536.68,0.00013698,2]
[334993613,1723716651863,-471.50924962,0.00013698,2]
[334993615,1723716651873,-500.0,0.00013698,2]
[334993617,1723716651882,-500.0,0.00013698,2]
[334993618,1723716651892,-500.0,0.00013698,2]
[334993620,1723716651902,-373.59197901,0.00013698,2]
[334993623,1723716651917,-3994.14,0.00013698,2]
[334993626,1723716651935,-546.03,0.00013698,2]
[334993628,1723716651952,-500.0,0.00013698,2]
[334993631,1723716651969,-500.0,0.00013698,2]
[334993634,1723716651987,-500.0,0.00013698,2]
[334993636,1723716652003,-653.84,0.00013698,2]
[334993639,1723716652021,-500.0,0.00013698,2]
[334993642,1723716652039,-151.0,0.00013698,2]
[334993645,1723716652056,-855.41,0.00013698,2]
[334993647,1723716652071,-151.0,0.00013698,2]
[334993650,1723716652087,-1698.32,0.00013698,2]
[334993652,1723716652099,-500.0,0.00013698,2]
[334993655,1723716652113,-500.0,0.00013698,2]
[334993657,1723716652128,-500.0,0.00013698,2]
[334993660,1723716652145,-538.07066586,0.00013698,2]
[334993662,1723716652161,-562.5,0.00013698,2]
[334993665,1723716652178,-562.5,0.00013698,2]
[334993667,1723716652189,-562.5,0.00013698,2]
[334993669,1723716652200,-562.5,0.00013698,2]
[334993671,1723716652214,-562.5,0.00013698,2]
[334993672,1723716652229,-562.5,0.00013698,2]
[334993673,1723716652243,-500.0,0.00013698,2]
[334993674,1723716652256,-562.5,0.00013698,2]
[334993675,1723716652269,-865.22,0.00013698,2]
[334993676,1723716652282,-562.5,0.00013698,2]
[334993677,1723716652295,-562.5,0.00013698,2]
[334993678,1723716652307,-562.5,0.00013698,2]
[334993679,1723716652322,-562.5,0.00013698,2]
[334993680,1723716652334,-562.5,0.00013698,2]
[334993681,1723716652346,-562.5,0.00013698,2]
[334993682,1723716652358,-562.5,0.00013698,2]
[334993683,1723716652371,-500.0,0.00013698,2]
[334993685,1723716652387,-562.5,0.00013698,2]
[334993688,1723716652399,-562.5,0.00013698,2]
[334993690,1723716652411,-562.5,0.00013698,2]
[334993692,1723716652423,-562.5,0.00013698,2]
[334993694,1723716652437,-1671.37,0.00013698,2]
[334993697,1723716652449,-503.51802139,0.00013698,2]
[334993699,1723716652462,-562.5,0.00013698,2]
[334993701,1723716652474,-701.74,0.00013698,2]
[334993704,1723716652487,-562.5,0.00013698,2]
[334993706,1723716652502,-562.5,0.00013698,2]
[334993708,1723716652515,-562.5,0.00013698,2]
[334993711,1723716652528,-1706.36,0.00013698,2]
[334993713,1723716652542,-562.5,0.00013698,2]
[334993716,1723716652555,-562.5,0.00013698,2]
[334993718,1723716652571,-500.0,0.00013698,2]
[334993720,1723716652583,-556.69,0.00013698,2]
[334993722,1723716652596,-996.25,0.00013698,2]
[334993725,1723716652608,-500.0,0.00013698,2]
[334993727,1723716652621,-500.0,0.00013698,2]
[334993729,1723716652633,-500.0,0.00013698,2]
[334993732,1723716652646,-500.0,0.00013698,2]
[334993734,1723716652660,-151.0,0.00013698,2]
[334993736,1723716652672,-1331.16,0.00013698,2]
[334993739,1723716652684,-151.0,0.00013698,2]
[334993741,1723716652696,-151.0,0.00013698,2]
[334993743,1723716652709,-151.0,0.00013698,2]
[334993745,1723716652722,-500.0,0.00013698,2]
[334993748,1723716652735,-151.0,0.00013698,2]
[334993750,1723716652749,-500.0,0.00013698,2]
[334993752,1723716652761,-521.14,0.00013698,2]
[334993754,1723716652773,-151.0,0.00013698,2]
[334993757,1723716652787,-151.0,0.00013698,2]
[334993759,1723716652800,-500.0,0.00013698,2]
[334993761,1723716652814,-151.0,0.00013698,2]
[334993764,1723716652829,-151.0,0.00013698,2]
[334993766,1723716652843,-151.0,0.00013698,2]
[334993769,1723716652858,-581.45,0.00013698,2]
[334993771,1723716652871,-151.0,0.00013698,2]
[334993773,1723716652884,-151.0,0.00013698,2]
[334993776,1723716652899,-299.412092,0.00013698,2]
[334993778,1723716652911,-1209.32,0.00013698,2]
[334993780,1723716652924,-1818.92,0.00013698,2]
[334993783,1723716652938,-361.1656613,0.00013698,2]
[334993785,1723716652953,-597.955334,0.00013698,2]
[334993787,1723716652966,-509.5476719,0.00013698,2]
[334993790,1723716652978,-597.955334,0.00013698,2]
[334993792,1723716652991,-500.0,0.00013698,2]
[334993794,1723716653004,-597.955334,0.00013698,2]
[334993797,1723716653016,-597.955334,0.00013698,2]
[334993799,1723716653029,-597.955334,0.00013698,2]
[334993801,1723716653042,-597.955334,0.00013698,2]
[334993804,1723716653055,-597.955334,0.00013698,2]
[334993806,1723716653069,-1100.1,0.00013698,2]
[334993809,1723716653081,-597.955334,0.00013698,2]
[334993811,1723716653095,-739.120907,0.00013698,2]
[334993813,1723716653107,-151.0,0.00013698,2]
[334993816,1723716653121,-597.955334,0.00013698,2]
[334993818,1723716653134,-739.120907,0.00013698,2]
[334993837,1723716653155,-597.955334,0.00013698,2]
[334993840,1723716653330,-739.120907,0.00013698,2]
[334993842,1723716653340,-500.0,0.00013698,2]
[334993844,1723716653348,-597.955334,0.00013698,2]
[334993846,1723716653358,-739.120907,0.00013698,2]
[334993848,1723716653367,-597.955334,0.00013698,2]
[334993850,1723716653378,-562.82,0.00013698,2]
[334993852,1723716653390,-597.955334,0.00013698,2]
[334993854,1723716653402,-597.955334,0.00013698,2]
[334993856,1723716653413,-739.120907,0.00013698,2]
[334993859,1723716653423,-739.120907,0.00013698,2]
[334993861,1723716653434,-2254.64,0.00013698,2]
[334993863,1723716653447,-739.120907,0.00013698,2]
[334993865,1723716653458,-739.120907,0.00013698,2]
[334993867,1723716653468,-500.0,0.00013698,2]
[334993869,1723716653478,-739.120907,0.00013698,2]
[334993871,1723716653487,-739.120907,0.00013698,2]
[334993873,1723716653497,-739.120907,0.00013698,2]
[334993875,1723716653507,-151.0,0.00013698,2]
[334993877,1723716653516,-151.0,0.00013698,2]
[334993879,1723716653526,-500.18672598,0.00013698,2]
[334993881,1723716653535,-153.42474,0.00013698,2]
[334993883,1723716653544,-1967.02,0.00013698,2]
[334993885,1723716653554,-500.0,0.00013698,2]
[334993887,1723716653566,-500.0,0.00013698,2]
[334993889,1723716653582,-555.73798203,0.00013698,2]
[334993891,1723716653591,-988.01,0.00013698,2]
[334993893,1723716653601,-500.0,0.00013698,2]
[334993895,1723716653611,-527.63,0.00013698,2]
[334993897,1723716653621,-927.26,0.00013698,2]
[334993899,1723716653632,-500.0,0.00013698,2]
[334993901,1723716653643,-500.0,0.00013698,2]
[334993903,1723716653653,-500.0,0.00013698,2]
[334993905,1723716653664,-500.3391649,0.00013698,2]
[334993907,1723716653674,-719.3,0.00013698,2]
[334993909,1723716653684,-151.0,0.00013698,2]
[334993911,1723716653693,-151.0,0.00013698,2]
[334993913,1723716653703,-151.0,0.00013698,2]
[334993915,1723716653713,-151.0,0.00013698,2]
[334993917,1723716653722,-572.43,0.00013698,2]
[334993919,1723716653731,-151.0,0.00013698,2]
[334993921,1723716653741,-151.0,0.00013698,2]
[334993923,1723716653751,-151.0,0.00013698,2]
[334993925,1723716653761,-151.0,0.00013698,2]
[334993927,1723716653770,-151.0,0.00013698,2]
[334993929,1723716653779,-151.0,0.00013698,2]
[334993931,1723716653789,-151.0,0.00013698,2]
[334993933,1723716653798,-234.895797,0.00013698,2]
[334993935,1723716653807,-799.05,0.00013698,2]
[334993937,1723716653817,-500.0,0.00013698,2]
[334993939,1723716653827,-151.0,0.00013698,2]
[334993941,1723716653838,-151.0,0.00013698,2]
[334993943,1723716653848,-151.0,0.00013698,2]
[334993945,1723716653859,-342.27455418,0.00013698,2]
[334993948,1723716653869,-151.0,0.00013698,2]
[334993949,1723716653878,-151.0,0.00013698,2]
[334993951,1723716653890,-151.0,0.00013698,2]
[334993953,1723716653899,-151.0,0.00013698,2]
[334993956,1723716653909,-581.88,0.00013698,2]
[334993958,1723716653919,-2164.18,0.00013698,2]
[334993959,1723716653928,-500.0,0.00013698,2]
[334993961,1723716653938,-500.0,0.00013698,2]
[334993964,1723716653948,-500.0,0.00013698,2]
[334993966,1723716653958,-500.0,0.00013698,2]
[334993968,1723716653968,-2006.92,0.00013698,2]
[334993970,1723716653978,-361.7950367,0.00013698,2]
[334993972,1723716653988,-500.0,0.00013698,2]
[334993974,1723716653997,-500.0,0.00013698,2]
[334993976,1723716654007,-761.66,0.00013698,2]
[334993978,1723716654017,-2873.64,0.00013698,2]
[334993980,1723716654026,-500.0,0.00013698,2]
[334993982,1723716654037,-325.547337,0.00013698,2]
[334993984,1723716654048,-325.547337,0.00013698,2]
[334993986,1723716654058,-325.547337,0.00013698,2]
[334993988,1723716654068,-325.547337,0.00013698,2]
[334993990,1723716654077,-325.547337,0.00013698,2]
[334993992,1723716654086,-325.547337,0.00013698,2]
[334993994,1723716654096,-325.547337,0.00013698,2]
[334993996,1723716654105,-561.92,0.00013698,2]
[334993998,1723716654115,-500.0,0.00013698,2]
[334994000,1723716654126,-7862.62,0.00013698,2]
[334994003,1723716654138,-500.0,0.00013698,2]
[334994005,1723716654147,-325.547337,0.00013698,2]
[334994006,1723716654156,-325.547337,0.00013698,2]
[334994009,1723716654166,-325.547337,0.00013698,2]
[334994011,1723716654175,-325.547337,0.00013698,2]
[334994013,1723716654185,-325.547337,0.00013698,2]
[334994015,1723716654194,-325.547337,0.00013698,2]
[334994017,1723716654204,-325.547337,0.00013698,2]